lending/lending_fUSD_20241120
["ID","MTS","AMOUNT","RATE_DAILY","PERIOD"]
[342814016,1732143225718,-500.0,0.00060821,120]
[342814017,1732143225728,-500.0,0.00060821,120]
[342814018,1732143225739,-500.0,0.00060821,120]
[342814019,1732143225748,-1283.37,0.00060821,120]
[342814020,1732143225758,-949.28,0.00060821,120]
[342814021,1732143225767,-588.18,0.00060821,120]
[342814022,1732143225776,-701.26,0.00060821,120]
[342814023,1732143225785,-1332.5,0.00060821,120]
[342814024,1732143225794,-761.37,0.00060821,120]
[342814025,1732143225803,-500.0,0.00060821,120]
[342814026,1732143225814,-673.21,0.00060821,120]
[342814027,1732143225823,-500.0,0.00060821,120]
[342814028,1732143225832,-570.71,0.00060821,120]
[342814029,1732143225841,-216.87,0.00060821,7]
[342814030,1732143225851,-500.0,0.00060821,120]
[342814031,1732143225860,-1647.84,0.00060821,120]
[342814032,1732143225870,-688.18,0.00060821,120]
[342814033,1732143225880,-672.22,0.00060821,120]
[342814034,1732143225889,-901.77,0.00060821,120]
[342814035,1732143225898,-500.0,0.00060821,120]
[342814036,1732143225907,-749.97,0.00060821,120]
[342814037,1732143225916,-500.0,0.00060821,120]
[342814038,1732143225926,-874.95,0.00060821,120]
[342814039,1732143225938,-705.26,0.00060821,120]
[342814040,1732143225948,-1584.28,0.00060821,120]
[342814041,1732143225957,-500.0,0.00060821,120]
[342814042,1732143225967,-698.15,0.00060821,120]
[342814043,1732143225977,-862.02,0.00060821,120]
[342814044,1732143225986,-710.13,0.00060821,120]
[342814045,1732143225996,-500.0,0.00060821,120]
[342814046,1732143226009,-563.38936368,0.00060821,120]
[342814047,1732143226019,-575.87,0.00060821,120]
[342814048,1732143226028,-533.41,0.00060821,120]
[342814049,1732143226038,-540.8492277,0.00060821,120]
[342814050,1732143226048,-1044.98,0.00060821,120]
[342814051,1732143226057,-550.21,0.00060821,120]
[342814052,1732143226067,-520.12304321,0.00060821,120]
[342814053,1732143226077,-838.1,0.00060821,120]
[342814054,1732143226087,-500.0,0.00060821,120]
[342814055,1732143226096,-598.39,0.00060821,120]
[342814056,1732143226106,-500.0,0.00060821,120]
[342814057,1732143226115,-500.0,0.00060821,120]
[342814058,1732143226124,-876.64,0.00060821,120]
[342814059,1732143226134,-678.26,0.00060821,120]
[342814060,1732143226144,-500.0,0.00060821,120]
[342814061,1732143226154,-853.3,0.00060821,120]
[342814062,1732143226164,-577.89,0.00060821,120]
[342814063,1732143226174,-528.71,0.00060821,120]
[342814064,1732143226183,-1058.89,0.00060821,120]
[342814065,1732143226192,-500.0,0.00060821,120]
[342814066,1732143226202,-929.3,0.00060821,120]
[342814067,1732143226211,-500.0,0.00060821,120]
[342814068,1732143226220,-516.05,0.00060821,120]
[342814069,1732143226230,-500.0,0.00060821,120]
[342814070,1732143226239,-839.52,0.00060821,120]
[342814071,1732143226249,-1582.8,0.00060821,120]
[342814072,1732143226261,-512.91,0.00060821,120]
[342814073,1732143226276,-560.35301073,0.00060821,120]
[342814074,1732143226287,-818.09,0.00060821,60]
[342814075,1732143226296,-910.7,0.00060821,120]
[342814076,1732143226306,-500.0,0.00060821,120]
[342814077,1732143226316,-686.07,0.00060821,120]
[342814078,1732143226326,-932.52,0.00060821,120]
[342814079,1732143226335,-718.84,0.00060821,120]
[342814080,1732143226345,-500.0,0.00060821,120]
[342814081,1732143226355,-566.64,0.00060821,120]
[342814082,1732143226365,-500.0,0.00060821,120]
[342814083,1732143226375,-500.0,0.00060821,120]
[342814084,1732143226385,-581.13,0.00060821,120]
[342814085,1732143226395,-528.98,0.00060821,120]
[342814086,1732143226404,-500.0,0.00060821,120]
[342814087,1732143226415,-1275.31,0.00060821,120]
[342814088,1732143226425,-694.38,0.00060821,120]
[342814089,1732143226435,-558.19,0.00060821,120]
[342814090,1732143226445,-512.65,0.00060821,120]
[342814091,1732143226454,-646.55,0.00060821,120]
[342814092,1732143226464,-889.52,0.00060821,120]
[342814093,1732143226475,-500.0,0.00060821,120]
[342814094,1732143226484,-1844.67,0.00060821,120]
[342814095,1732143226494,-1345.16,0.00060821,120]
[342814096,1732143226506,-1167.24,0.00060821,120]
[342814097,1732143226515,-577.22,0.00060821,120]
[342814098,1732143226525,-1354.36,0.00060821,120]
[342814099,1732143226535,-786.11,0.00060821,120]
[342814100,1732143226544,-819.5,0.00060821,120]
[342814101,1732143226554,-1126.54,0.00060821,120]
[342814102,1732143226563,-810.54,0.00060821,120]
[342814103,1732143226573,-1630.49,0.00060821,120]
[342814104,1732143226583,-500.0,0.00060821,120]
[342814105,1732143226592,-500.0,0.00060821,120]
[342814106,1732143226602,-1539.37,0.00060821,120]
[342814107,1732143226611,-1061.11,0.00060821,120]
[342814108,1732143226620,-500.0,0.00060821,120]
[342814109,1732143226630,-616.53,0.00060821,120]
[342814110,1732143226640,-1163.7,0.00060821,120]
[342814111,1732143226649,-769.28,0.00060821,120]
[342814112,1732143226659,-500.0,0.00060821,120]
[342814113,1732143226668,-1697.48,0.00060821,120]
[342814114,1732143226678,-768.83,0.00060821,120]
[342814115,1732143226689,-500.0,0.00060821,120]
[342814116,1732143226700,-1494.04,0.00060821,120]
[342814117,1732143226710,-500.0,0.00060821,120]
[342814118,1732143226720,-583.76,0.00060821,120]
[342814119,1732143226730,-598.71,0.00060821,120]
[342814120,1732143226740,-564.39305307,0.00060821,120]
[342814121,1732143226749,-1417.12,0.00060821,120]
[342814122,1732143226760,-500.0,0.00060821,120]
[342814123,1732143226770,-514.86,0.00060821,120]
[342814124,1732143226780,-1024.27,0.00060821,120]
[342814125,1732143226789,-580.28,0.00060821,120]
[342814126,1732143226799,-583.69,0.00060821,120]
[342814127,1732143226808,-625.85,0.00060821,120]
[342814128,1732143226819,-1242.02,0.00060821,120]
[342814129,1732143226828,-500.0,0.00060821,120]
[342814130,1732143226837,-1011.03,0.00060821,120]
[342814131,1732143226847,-1642.42,0.00060821,7]
[342814132,1732143226856,-500.0,0.00060821,120]
[342814133,1732143226866,-835.63,0.00060821,120]
[342814134,1732143226875,-1168.69,0.00060821,120]
[342814135,1732143226885,-785.67,0.00060821,120]
[342814136,1732143226894,-526.48,0.00060821,120]
[342814137,1732143226904,-500.0,0.00060821,120]
[342814138,1732143226913,-500.0,0.00060821,120]
[342814139,1732143226923,-1791.8,0.00060821,120]
[342814140,1732143226936,-785.27,0.00060821,120]
[342814141,1732143226945,-1740.08,0.00060821,120]
[342814142,1732143226954,-764.29,0.00060821,120]
[342814143,1732143226963,-830.14,0.00060821,120]
[342814144,1732143226973,-500.0,0.00060821,120]
[342814145,1732143226982,-937.69,0.00060821,120]
[342814146,1732143226992,-500.0,0.00060821,120]
[342814147,1732143227001,-1926.82,0.00060821,120]
[342814148,1732143227012,-513.97,0.00060821,120]
[342814149,1732143227022,-1258.94,0.00060821,120]
[342814150,1732143227032,-615.91,0.00060821,120]
[342814151,1732143227040,-500.0,0.00060821,120]
[342814152,1732143227050,-703.85,0.00060821,120]
[342814153,1732143227059,-739.53,0.00060821,120]
[342814154,1732143227070,-2364.09,0.00060821,120]
[342814155,1732143227079,-1516.8,0.00060821,120]
[342814156,1732143227089,-500.0,0.00060821,120]
[342814157,1732143227099,-500.0,0.00060821,120]
[342814158,1732143227109,-1222.69,0.00060821,120]
[342814159,1732143227119,-644.03,0.00060821,120]
[342814160,1732143227129,-628.65,0.00060821,120]
[342814161,1732143227139,-689.07,0.00060821,120]
[342814162,1732143227148,-598.66,0.00060821,120]
[342814163,1732143227158,-500.0,0.00060821,120]
[342814164,1732143227167,-500.0,0.00060821,120]
[342814165,1732143227177,-696.8,0.00060821,120]
[342814166,1732143227186,-517.71,0.00060821,120]
[342814167,1732143227196,-670.6,0.00060821,120]
[342814168,1732143227205,-1622.41,0.00060821,120]
[342814169,1732143227215,-732.47,0.00060821,120]
[342814170,1732143227224,-799.65,0.00060821,120]
[342814171,1732143227234,-498.10970186,0.00060821,120]
[342814172,1732143227243,-431.58038406,0.00060821,120]
[342814173,1732143227253,-3752.95,0.00060821,120]
[342814174,1732143227264,-694.86,0.00060821,120]
[342814175,1732143227274,-527.72,0.00060821,120]
[342814176,1732143227284,-500.0,0.00060821,120]
[342814177,1732143227293,-2754.45,0.00060821,120]
[342814178,1732143227303,-821.37,0.00060821,120]
[342814179,1732143227312,-777.0,0.00060821,120]
[342814180,1732143227322,-1552.42,0.00060821,120]
[342814181,1732143227332,-750.37,0.00060821,120]
[342814182,1732143227341,-586.88,0.00060821,120]
[342814183,1732143227350,-546.79,0.00060821,120]
[342814184,1732143227359,-1410.35,0.00060821,120]
[342814185,1732143227368,-500.0,0.00060821,120]
[342814186,1732143227377,-622.81,0.00060821,120]
[342814187,1732143227387,-1270.46,0.00060821,120]
[342814188,1732143227396,-1078.42,0.00060821,120]
[342814189,1732143227406,-2348.91,0.00060821,120]
[342814190,1732143227416,-1803.88,0.00060821,120]
[342814191,1732143227426,-875.42,0.00060821,120]
[342814192,1732143227435,-908.45,0.00060821,120]
[342814193,1732143227445,-500.0,0.00060821,120]
[342814194,1732143227454,-643.69,0.00060821,120]
[342814195,1732143227465,-1745.98,0.00060821,120]
[342814196,1732143227475,-500.0,0.00060821,120]
[342814197,1732143227485,-659.6,0.00060821,120]
[342814198,1732143227770,-1212.54,0.00060821,120]
[342814199,1732143227780,-500.0,0.00060821,120]
[342814200,1732143227789,-500.0,0.00060821,120]
[342814201,1732143227798,-2042.25,0.00060821,120]
[342814202,1732143227807,-828.06,0.00060821,120]
[342814203,1732143227817,-646.63,0.00060821,120]
[342814204,1732143227827,-806.31,0.00060821,120]
[342814205,1732143227836,-1287.88,0.00060821,120]
[342814206,1732143227845,-1410.77,0.00060821,120]
[342814207,1732143227855,-1026.3,0.00060821,120]
[342814208,1732143227864,-623.91,0.00060821,120]
[342814209,1732143227874,-654.97,0.00060821,120]
[342814210,1732143227884,-766.21,0.00060821,120]
[342814211,1732143227894,-1162.69,0.00060821,120]
[342814212,1732143227903,-1000.52,0.00060821,120]
[342814213,1732143227913,-1013.49,0.00060821,120]
[342814214,1732143227922,-811.56,0.00060821,120]
[342814215,1732143227934,-1475.7,0.00060821,120]
[342814216,1732143227944,-3361.2,0.00060821,120]
[342814217,1732143227954,-633.81,0.00060821,120]
[342814218,1732143227963,-1185.33,0.00060821,120]
[342814219,1732143227973,-500.0,0.00060821,120]
[342814220,1732143227983,-838.48,0.00060821,120]
[342814221,1732143227992,-1382.6,0.00060821,120]
[342814222,1732143228003,-500.0,0.00060821,120]
[342814223,1732143228016,-500.0,0.00060821,120]
[342814224,1732143228027,-2198.56,0.00060821,120]
[342814225,1732143228036,-534.81,0.00060821,120]
[342814226,1732143228047,-500.0,0.00060821,120]
[342814227,1732143228058,-500.0,0.00060821,120]
[342814228,1732143228068,-658.16,0.00060821,120]
[342814229,1732143228078,-581.06,0.00060821,120]
[342814230,1732143228087,-843.03,0.00060821,120]
[342814231,1732143228099,-536.1,0.00060821,120]
[342814232,1732143228110,-1309.27,0.00060821,120]
[342814233,1732143228120,-665.72,0.00060821,120]
[342814234,1732143228131,-789.82,0.00060821,120]
[342814235,1732143228141,-660.24,0.00060821,120]
[342814236,1732143228150,-504.35,0.00060821,120]
[342814237,1732143228160,-2411.2,0.00060821,120]
[342814238,1732143228171,-773.4,0.00060821,120]
[342814239,1732143228181,-3997.56,0.00060821,120]
[342814240,1732143228191,-556.25,0.00060821,120]
[342814241,1732143228201,-559.66,0.00060821,120]
[342814242,1732143228211,-1755.1,0.00060821,120]
[342814243,1732143228221,-1021.42,0.00060821,120]
[342814244,1732143228231,-968.59,0.00060821,120]
[342814245,1732143228241,-500.0,0.00060821,120]
[342814246,1732143228251,-747.74,0.00060821,120]
[342814247,1732143228263,-650.26,0.00060821,120]
[342814248,1732143228274,-552.66,0.00060821,120]
[342814249,1732143228284,-500.0,0.00060821,120]
[342814250,1732143228294,-528.53,0.00060821,120]
[342814251,1732143228304,-661.12,0.00060821,120]
[342814252,1732143228314,-4504.33,0.00060821,120]
[342814253,1732143228325,-1414.7,0.00060821,120]
[342814254,1732143228335,-316.02533921,0.00060821,120]
[342814255,1732143228345,-500.0,0.00060821,120]
[342814256,1732143228354,-1839.1,0.00060821,20]
[342814257,1732143228364,-331.62505117,0.00060821,120]
[342814258,1732143228374,-600.15,0.00060821,120]
[342814259,1732143228384,-639.71,0.00060821,120]
[342814260,1732143228393,-1229.98,0.00060821,120]
[342814261,1732143228404,-500.0,0.00060821,120]
[342814262,1732143228414,-444.77837394,0.00060821,120]
[342814263,1732143228424,-643.92,0.00060821,120]
[342814264,1732143228434,-1685.02,0.00060821,120]
[342814265,1732143228444,-503.41,0.00060821,120]
[342814266,1732143228454,-1838.85,0.00060821,120]
[342814267,1732143228463,-777.36,0.00060821,120]
[342814268,1732143228473,-500.0,0.00060821,120]
[342814269,1732143228484,-1088.52,0.00060821,120]
[342814270,1732143228494,-3963.88,0.00060821,120]
[342814271,1732143228503,-500.0,0.00060821,120]
[342814272,1732143228514,-508.93,0.00060821,120]
[342814273,1732143228524,-500.0,0.00060821,120]
[342814274,1732143228534,-522.18,0.00060821,120]
[342814275,1732143228544,-674.72,0.00060821,120]
[342814276,1732143228555,-1573.1,0.00060821,120]
[342814277,1732143228565,-500.0,0.00060821,120]
[342814278,1732143228574,-1344.45,0.00060821,120]
[342814279,1732143228584,-695.34,0.00060821,120]
[342814280,1732143228593,-993.23,0.00060821,120]
[342814281,1732143228603,-5030.76,0.00060821,120]
[342814282,1732143228613,-530.39,0.00060821,120]
[342814283,1732143228622,-1007.71,0.00060821,120]
[342814284,1732143228632,-1508.05,0.00060821,120]
[342814285,1732143228642,-500.0,0.00060821,120]
[342814286,1732143228652,-845.57,0.00060821,120]
[342814287,1732143228662,-500.0,0.00060821,120]
[342814288,1732143228671,-635.4,0.00060821,120]
[342814289,1732143228681,-872.55,0.00060821,120]
[342814290,1732143228691,-3671.8,0.00060821,120]
[342814291,1732143228702,-1949.27,0.00060821,120]
[342814292,1732143228712,-1275.78,0.00060821,120]
[342814293,1732143228723,-1300.6,0.00060821,120]
[342814294,1732143228732,-873.15,0.00060821,120]
[342814295,1732143228742,-656.67,0.00060821,120]
[342814296,1732143228752,-1078.43,0.00060821,120]
[342814297,1732143228762,-729.83,0.00060821,120]
[342814298,1732143228772,-1015.57,0.00060821,120]
[342814299,1732143228782,-562.04,0.00060821,120]
[342814300,1732143228792,-2222.66,0.00060821,120]
[342814301,1732143228802,-1080.64,0.00060821,120]
[342814302,1732143228811,-2596.1,0.00060821,120]
[342814303,1732143228821,-852.14,0.00060821,120]
[342814304,1732143228831,-569.32,0.00060821,120]
[342814305,1732143228841,-999.09,0.00060821,120]
[342814306,1732143228851,-509.24,0.00060821,120]
[342814307,1732143228861,-928.5,0.00060821,120]
[342814308,1732143228871,-1806.6,0.00060821,120]
[342814309,1732143228881,-1129.79,0.00060821,120]
[342814310,1732143228891,-2425.19,0.00060821,120]
[342814311,1732143228901,-569.99,0.00060821,120]
[342814312,1732143228911,-625.0,0.00060821,120]
[342814313,1732143228923,-1018.93,0.00060821,120]
[342814314,1732143228936,-2073.72,0.00060821,120]
[342814315,1732143228947,-1011.93,0.00060821,120]
[342814316,1732143228956,-1257.41,0.00060821,120]
[342814317,1732143228966,-1328.54,0.00060821,120]
[342814318,1732143228977,-893.2,0.00060821,120]
[342814319,1732143228987,-878.56,0.00060821,120]
[342814320,1732143228997,-1954.12,0.00060821,120]
[342814321,1732143229009,-1107.33,0.00060821,120]
[342814322,1732143229018,-5394.68,0.00060821,120]
[342814323,1732143229029,-709.28,0.00060821,120]
[342814324,1732143229038,-965.73,0.00060821,120]
[342814325,1732143229048,-543.1,0.00060821,120]
[342814326,1732143229057,-1317.76,0.00060821,120]
[342814327,1732143229068,-594.46,0.00060821,120]
[342814328,1732143229078,-1617.12,0.00060821,120]
[342814329,1732143229088,-569.41,0.00060821,120]
[342814330,1732143229099,-657.08,0.00060821,120]
[342814331,1732143229108,-628.07,0.00060821,120]
[342814332,1732143229118,-4865.56,0.00060821,120]
[342814333,1732143229128,-1510.86,0.00060821,120]
[342814334,1732143229138,-2529.98,0.00060821,120]
[342814335,1732143229148,-750.97,0.00060821,120]
[342814336,1732143229158,-635.24,0.00060821,120]
[342814337,1732143229168,-1489.09,0.00060821,120]
[342814338,1732143229179,-1761.11,0.00060821,120]
[342814339,1732143229190,-624.76,0.00060821,120]
[342814340,1732143229200,-46265.17,0.00060821,120]
[342814341,1732143229210,-208.89263423,0.00060821,120]
[342814342,1732143229220,-644.52,0.00060821,120]
[342814343,1732143229230,-880.93,0.00060821,120]
[342814344,1732143229240,-4390.12,0.00060821,120]
[342814345,1732143229250,-3641.91,0.00060821,120]
[342814346,1732143229262,-2046.77,0.00060821,120]
[342814347,1732143229272,-519.31,0.00060821,120]
[342814348,1732143229282,-1566.08,0.00060821,120]
[342814349,1732143229292,-1582.94,0.00060821,120]
[342814350,1732143229303,-1540.18,0.00060821,120]
[342814351,1732143229313,-1118.01,0.00060821,120]
[342814352,1732143229323,-32182.96,0.00060821,120]
[342814353,1732143229333,-2395.44,0.00060821,120]
[342814354,1732143229344,-774.88,0.00060821,120]
[342814355,1732143229353,-500.0,0.00060821,120]
[342814356,1732143229363,-3018.97,0.00060821,120]
[342814357,1732143229373,-500.0,0.00060821,120]
[342814358,1732143229383,-1221.56,0.00060821,120]
[342814359,1732143229394,-949.33,0.00060821,120]
[342814360,1732143229404,-512.47,0.00060821,120]
[342814361,1732143229414,-975.73,0.00060821,120]
[342814362,1732143229424,-500.0,0.00060821,120]
[342814363,1732143229435,-1680.87,0.00060821,120]
[342814364,1732143229445,-2068.97,0.00060821,120]
[342814365,1732143229455,-509.92,0.00060821,120]
[342814366,1732143229464,-2386.08,0.00060821,120]
[342814367,1732143229475,-2587.78,0.00060821,120]
[342814368,1732143229484,-1481.97,0.00060821,120]
[342814369,1732143229494,-1478.74,0.00060821,120]
[342814370,1732143229504,-580.13,0.00060821,120]
[342814371,1732143229516,-500.0,0.00060821,120]
[342814372,1732143229526,-816.51,0.00060821,120]
[342814373,1732143229536,-562.17,0.00060821,120]
[342814374,1732143229546,-1753.89,0.00060821,120]
[342814375,1732143229556,-10880.09,0.00060821,120]
[342814376,1732143229566,-2245.37,0.00060821,120]
[342814377,1732143229576,-3622.31,0.00060821,120]
[342814378,1732143229587,-502.6,0.00060821,120]
[342814379,1732143229597,-549.22752766,0.00060821,120]
[342814380,1732143229607,-1317.84,0.00060821,120]
[342814381,1732143229617,-1518.89,0.00060821,90]
[342814382,1732143229626,-1643.31,0.00060821,120]
[342814383,1732143229636,-1298.63,0.00060821,120]
[342814384,1732143229646,-943.47,0.00060821,120]
[342814385,1732143229662,-1649.32,0.00060821,120]
[342814386,1732143229672,-500.0,0.00060821,120]
[342814387,1732143229683,-550.87,0.00060821,120]
[342814388,1732143229693,-2158.9,0.00060821,120]
[342814389,1732143229702,-1165.26,0.00060821,120]
[342814390,1732143229712,-5640.48,0.00060821,120]
[342814391,1732143229723,-1244.51,0.00060821,120]
[342814392,1732143229733,-516.5,0.00060821,120]
[342814393,1732143229743,-1110.14,0.00060821,120]
[342814394,1732143229752,-9870.91,0.00060821,120]
[342814395,1732143229769,-986.78,0.00060821,120]
[342814396,1732143229779,-567.02,0.00060821,120]
[342814397,1732143229790,-651.9,0.00060821,120]
[342814398,1732143229799,-3368.96,0.00060821,120]
[342814399,1732143229810,-1042.13,0.00060821,120]
[342814400,1732143229820,-6243.58,0.00060821,120]
[342814401,1732143229830,-1021.75,0.00060821,120]
[342814402,1732143229840,-1221.81,0.00060821,120]
[342814403,1732143229850,-1378.96,0.00060821,120]
[342814404,1732143229859,-1402.48,0.00060821,120]
[342814405,1732143229869,-1098.99,0.00060821,7]
[342814406,1732143229879,-2324.89,0.00060821,120]
[342814407,1732143229888,-3357.52,0.00060821,120]
[342814408,1732143229898,-1503.83,0.00060821,120]
[342814409,1732143229908,-500.0,0.00060821,120]
[342814410,1732143229917,-631.52,0.00060821,120]
[342814411,1732143229927,-676.3,0.00060821,120]
[342814412,1732143229941,-610.46,0.00060821,120]
[342814413,1732143229951,-4485.14,0.00060821,120]
[342814414,1732143229960,-1449.22,0.00060821,120]
[342814415,1732143229970,-802.14,0.00060821,120]
[342814416,1732143229981,-1005.77,0.00060821,120]
[342814417,1732143229990,-62267.29,0.00060821,5]
[342814418,1732143230000,-733.47,0.00060821,120]
[342814419,1732143230016,-313.21667282,0.00060821,120]
[342814420,1732143230025,-1200.11,0.00060821,120]
[342814421,1732143230035,-4633.73,0.00060821,120]
[342814422,1732143230045,-1462.06,0.00060821,120]
[342814423,1732143230055,-1071.61,0.00060821,120]
[342814424,1732143230065,-1246.53,0.00060821,120]
[342814425,1732143230074,-665.76,0.00060821,120]
[342814426,1732143230085,-1619.4,0.00060821,120]
[342814427,1732143230095,-1033.25,0.00060821,120]
[342814428,1732143230104,-4155.63,0.00060821,120]
[342814429,1732143230115,-500.0,0.00060821,120]
[342814430,1732143230124,-534.16,0.00060821,120]
[342814431,1732143230134,-716.03,0.00060821,120]
[342814432,1732143230144,-710.7,0.00060821,120]
[342814433,1732143230154,-1328.15,0.00060821,120]
[342814434,1732143230164,-1770.4,0.00060821,120]
[342814435,1732143230174,-1828.16,0.00060821,120]
[342814436,1732143230183,-3842.23,0.00060821,120]
[342814437,1732143230193,-734.2,0.00060821,120]
[342814438,1732143230203,-4113.57,0.00060821,120]
[342814439,1732143230212,-3361.09,0.00060821,120]
[342814440,1732143230222,-2336.41,0.00060821,120]
[342814441,1732143230231,-914.26,0.00060821,120]
[342814442,1732143230241,-2227.59,0.00060821,120]
[342814443,1732143230251,-1225.66,0.00060821,120]
[342814444,1732143230266,-1793.12,0.00060821,120]
[342814445,1732143230276,-1199.34,0.00060821,120]
[342814446,1732143230286,-818.4,0.00060821,120]
[342814447,1732143230473,-945.67,0.00060821,120]
[342814448,1732143230483,-4656.57,0.00060821,120]
[342814449,1732143230493,-656.2,0.00060821,120]
[342814450,1732143230502,-1601.15,0.00060821,120]
[342814451,1732143230513,-2590.51,0.00060821,120]
[342814452,1732143230523,-1087.48,0.00060821,120]
[342814453,1732143230532,-617.4,0.00060821,120]
[342814454,1732143230542,-1021.22,0.00060821,120]
[342814455,1732143230551,-530.21,0.00060821,120]
[342814456,1732143230561,-861.7,0.00060821,120]
[342814457,1732143230571,-4078.12,0.00060821,120]
[342814458,1732143230580,-609.85,0.00060821,120]
[342814459,1732143230590,-1271.08,0.00060821,120]
[342814460,1732143230599,-630.13,0.00060821,120]
[342814461,1732143230608,-1053.42,0.00060821,120]
[342814462,1732143230618,-10737.37,0.00060821,21]
[342814463,1732143230627,-868.75,0.00060821,120]
[342814464,1732143230636,-3054.48,0.00060821,120]
[342814465,1732143230646,-772.0,0.00060821,120]
[342814466,1732143230655,-790.82,0.00060821,120]
[342814467,1732143230664,-1615.7,0.00060821,120]
[342814468,1732143230673,-576.17,0.00060821,120]
[342814469,1732143230683,-2780.77,0.00060821,120]
[342814470,1732143230692,-3170.06,0.00060821,120]
[342814471,1732143230702,-530.51,0.00060821,120]
[342814472,1732143230712,-814.28,0.00060821,120]
[342814473,1732143230721,-1053.94,0.00060821,120]
[342814474,1732143230731,-832.21,0.00060821,120]
[342814475,1732143230740,-559.12,0.00060821,120]
[342814476,1732143230750,-962.23,0.00060821,120]
[342814477,1732143230760,-4610.65,0.00060821,120]
[342814478,1732143230770,-630.95,0.00060821,120]
[342814479,1732143230779,-1497.99,0.00060821,120]
[342814480,1732143230789,-500.0,0.00060821,120]
[342814481,1732143230799,-3030.53,0.00060821,120]
[342814482,1732143230810,-2002.76,0.00060821,120]
[342814483,1732143230819,-4996.62,0.00060821,120]
[342814484,1732143230829,-1038.47,0.00060821,120]
[342814485,1732143230838,-7093.52,0.00060821,120]
[342814486,1732143230847,-3755.03,0.00060821,120]
[342814487,1732143230857,-500.33,0.00060821,120]
[342814488,1732143230867,-1395.84,0.00060821,120]
[342814489,1732143230877,-6717.87,0.00060821,120]
[342814490,1732143230888,-619.43,0.00060821,120]
[342814491,1732143230898,-4210.05,0.00060821,120]
[342814492,1732143230908,-500.0,0.00060821,120]
[342814493,1732143230917,-4619.32,0.00060821,120]
[342814494,1732143230928,-2125.56,0.00060821,120]
[342814495,1732143230942,-417.21859509,0.00060821,120]
[342814496,1732143230952,-1522.48,0.00060821,120]
[342814497,1732143230963,-2913.49,0.00060821,120]
[342814498,1732143230972,-654.65,0.00060821,120]
[342814499,1732143230985,-6408.58,0.00060821,60]
[342814500,1732143230995,-8536.13,0.00060821,120]
[342814501,1732143231004,-931.52,0.00060821,120]
[342814502,1732143231015,-5185.83,0.00060821,120]
[342814503,1732143231025,-873.24,0.00060821,120]
[342814504,1732143231034,-1838.8,0.00060821,120]
[342814505,1732143231044,-1525.45,0.00060821,120]
[342814506,1732143231053,-1373.0,0.00060821,120]
[342814507,1732143231063,-1659.86,0.00060821,120]
[342814508,1732143231072,-500.0,0.00060821,120]
[342814509,1732143231081,-5907.77,0.00060821,120]
[342814510,1732143231090,-647.02,0.00060821,120]
[342814511,1732143231100,-1210.69,0.00060821,120]
[342814512,1732143231110,-526.64,0.00060821,120]
[342814513,1732143231119,-12504.89,0.00060821,120]
[342814514,1732143231129,-2076.98,0.00060821,120]
[342814515,1732143231138,-1181.36,0.00060821,120]